[Event "Late-Titled-Tuesday-Blitz-March-05-2024"]
[Site "Chess.com"]
[Date "2024.03.05"]
[Round "10"]
[White "Fjal"]
[Black "PapaieDudu"]
[Result "1-0"]
[WhiteElo "2318"]
[BlackElo "2435"]
[TimeControl "180+1"]
[EndTime "15:52:23 PST"]
[Termination "Fjal won by resignation"]

1. Nf3 {[%clk 0:02:56.5]} 1... d5 {[%clk 0:02:59.9]} 2. g3 {[%clk 0:02:56.1]}
2... Nf6 {[%clk 0:03:00.4]} 3. Bg2 {[%clk 0:02:56.6]} 3... e6 {[%clk 0:03:01]}
4. O-O {[%clk 0:02:57.1]} 4... Be7 {[%clk 0:03:01.5]} 5. c4 {[%clk 0:02:57.8]}
5... O-O {[%clk 0:03:01.9]} 6. d4 {[%clk 0:02:57.5]} 6... dxc4 {[%clk
0:03:02.5]} 7. Nc3 {[%clk 0:02:56.7]} 7... a6 {[%clk 0:03:02.2]} 8. Ne5 {[%clk
0:02:51.4]} 8... c5 {[%clk 0:03:01.5]} 9. dxc5 {[%clk 0:02:49.1]} 9... Qc7
{[%clk 0:03:01.5]} 10. Nxc4 {[%clk 0:02:38.7]} 10... Qxc5 {[%clk 0:03:00.6]} 11.
Qb3 {[%clk 0:02:31.8]} 11... e5 {[%clk 0:02:30.8]} 12. Be3 {[%clk 0:02:23.8]}
12... Qc7 {[%clk 0:02:24.4]} 13. Bb6 {[%clk 0:02:15.5]} 13... Qd7 {[%clk
0:02:20.6]} 14. Nxe5 {[%clk 0:02:14]} 14... Qf5 {[%clk 0:02:19.7]} 15. Nd3
{[%clk 0:01:47.6]} 15... Nc6 {[%clk 0:02:16.4]} 16. e4 {[%clk 0:01:45.6]} 16...
Qh5 {[%clk 0:02:13.4]} 17. Nf4 {[%clk 0:01:39.8]} 17... Qh6 {[%clk 0:02:11.4]}
18. Ncd5 {[%clk 0:01:37.8]} 18... Bd6 {[%clk 0:02:05.3]} 19. Rfe1 {[%clk
0:01:28.9]} 19... Ng4 {[%clk 0:02:00.1]} 20. h3 {[%clk 0:01:27.8]} 20... Nge5
{[%clk 0:01:59.5]} 21. Rad1 {[%clk 0:01:23.4]} 21... g5 {[%clk 0:01:56.5]} 22.
Nd3 {[%clk 0:00:50]} 22... Bxh3 {[%clk 0:01:48.9]} 23. Nxe5 {[%clk 0:00:50]}
23... Bxe5 {[%clk 0:01:47.1]} 24. Qf3 {[%clk 0:00:30.6]} 24... Be6 {[%clk
0:01:34.7]} 25. Nc7 {[%clk 0:00:20.5]} 25... Rac8 {[%clk 0:01:17.2]} 26. Nxe6
{[%clk 0:00:19.1]} 26... fxe6 {[%clk 0:01:17.6]} 27. Qg4 {[%clk 0:00:19.5]}
27... Qg7 {[%clk 0:01:10.9]} 28. Qxe6+ {[%clk 0:00:18.4]} 28... Kh8 {[%clk
0:01:11.5]} 29. Rd7 {[%clk 0:00:17.5]} 29... Qf6 {[%clk 0:01:02]} 30. Qxf6+
{[%clk 0:00:15.6]} 30... Rxf6 {[%clk 0:01:02.4]} 31. Rxb7 {[%clk 0:00:15.2]}
31... Bxb2 {[%clk 0:00:59.7]} 32. Be3 {[%clk 0:00:13.7]} 32... Rg8 {[%clk
0:00:54.9]} 33. Rxb2 {[%clk 0:00:12.6]} 33... Ne5 {[%clk 0:00:54.2]} 34. Bd4
{[%clk 0:00:11.4]} 34... Re8 {[%clk 0:00:50.5]} 35. f4 {[%clk 0:00:09.3]} 35...
gxf4 {[%clk 0:00:50.1]} 36. gxf4 {[%clk 0:00:09.1]} 36... Rxf4 {[%clk
0:00:50.4]} 37. Rf1 {[%clk 0:00:08.8]} 37... Rg4 {[%clk 0:00:47.2]} 38. Rf5
{[%clk 0:00:05.3]} 38... Kg8 {[%clk 0:00:42.2]} 39. Bxe5 {[%clk 0:00:05]} 39...
Rd8 {[%clk 0:00:41.6]} 40. Kh2 {[%clk 0:00:04.6]} 40... Rh4+ {[%clk 0:00:39.9]}
41. Kg3 {[%clk 0:00:04.4]} 41... Rh6 {[%clk 0:00:40.1]} 42. Rb7 {[%clk
0:00:03.9]} 42... Rg6+ {[%clk 0:00:39.6]} 43. Kf3 {[%clk 0:00:03.9]} 43... Rd3+
{[%clk 0:00:39.5]} 44. Ke2 {[%clk 0:00:04]} 44... Rd8 {[%clk 0:00:39.3]} 45. Bf3
{[%clk 0:00:04.2]} 45... Rc8 {[%clk 0:00:37]} 46. Bd4 {[%clk 0:00:04.2]} 46...
Rc2+ {[%clk 0:00:36.8]} 47. Ke3 {[%clk 0:00:04.9]} 47... Rc8 {[%clk 0:00:34.9]}
48. Kf4 {[%clk 0:00:05.3]} 48... h6 {[%clk 0:00:27.6]} 49. Rff7 {[%clk
0:00:05.8]} 49... h5 {[%clk 0:00:21.9]} 50. Bxh5 {[%clk 0:00:06]} 50... Rg2
{[%clk 0:00:22]} 51. Bg4 {[%clk 0:00:06.2]} 51... Rc1 {[%clk 0:00:19]} 52. Rg7+
{[%clk 0:00:06.5]} 52... Kf8 {[%clk 0:00:19]} 53. Rbf7+ {[%clk 0:00:06.3]} 53...
Ke8 {[%clk 0:00:19.6]} 54. Re7+ {[%clk 0:00:06.7]} 54... Kd8 {[%clk 0:00:20]}
55. Bf6 {[%clk 0:00:05.9]} 55... Rf1+ {[%clk 0:00:19.2]} 56. Ke5 {[%clk
0:00:06.5]} 56... Rxf6 {[%clk 0:00:16.5]} 57. Kxf6 {[%clk 0:00:07.4]} 57... Rf2+
{[%clk 0:00:16.2]} 58. Bf5 {[%clk 0:00:07.8]} 58... Rg2 {[%clk 0:00:07.1]} 59.
Rxg2 {[%clk 0:00:07]} 1-0

[Event "Late-Titled-Tuesday-Blitz-March-05-2024"]
[Site "Chess.com"]
[Date "2024.03.05"]
[Round "10"]
[White "BogdanDeac"]
[Black "TheBigBoss04"]
[Result "1-0"]
[WhiteElo "2956"]
[BlackElo "2699"]
[TimeControl "180+1"]
[EndTime "15:52:25 PST"]
[Termination "BogdanDeac won on time"]

1. d4 {[%clk 0:03:00.9]} 1... d5 {[%clk 0:02:57.5]} 2. c4 {[%clk 0:03:01.2]}
2... e6 {[%clk 0:02:56.9]} 3. Nf3 {[%clk 0:03:01.2]} 3... a6 {[%clk 0:02:56.9]}
4. Bg5 {[%clk 0:02:57.2]} 4... Be7 {[%clk 0:02:55.1]} 5. Bxe7 {[%clk 0:02:57.2]}
5... Qxe7 {[%clk 0:02:56]} 6. Nbd2 {[%clk 0:02:56.8]} 6... Nf6 {[%clk
0:02:55.1]} 7. g3 {[%clk 0:02:57]} 7... O-O {[%clk 0:02:52.2]} 8. Bg2 {[%clk
0:02:55.6]} 8... c5 {[%clk 0:02:50.5]} 9. dxc5 {[%clk 0:02:53.7]} 9... Rd8
{[%clk 0:02:36.3]} 10. cxd5 {[%clk 0:02:45]} 10... Rxd5 {[%clk 0:02:24.3]} 11.
b4 {[%clk 0:02:44.4]} 11... a5 {[%clk 0:02:24.2]} 12. a3 {[%clk 0:02:44.6]}
12... Nc6 {[%clk 0:02:21.8]} 13. b5 {[%clk 0:02:30.4]} 13... Nb8 {[%clk
0:02:19.8]} 14. O-O {[%clk 0:02:23]} 14... Rxc5 {[%clk 0:02:17.8]} 15. a4 {[%clk
0:02:23]} 15... Nbd7 {[%clk 0:02:08.5]} 16. Qb3 {[%clk 0:02:17.4]} 16... Nb6
{[%clk 0:01:55.6]} 17. Rfc1 {[%clk 0:02:07.8]} 17... Bd7 {[%clk 0:01:47.8]} 18.
Rxc5 {[%clk 0:01:43]} 18... Qxc5 {[%clk 0:01:46.6]} 19. Ne1 {[%clk 0:01:43.6]}
19... Qd4 {[%clk 0:01:32]} 20. Ra2 {[%clk 0:01:40.5]} 20... e5 {[%clk
0:01:27.7]} 21. Nef3 {[%clk 0:01:10.2]} 21... Qd6 {[%clk 0:01:05.2]} 22. Ng5
{[%clk 0:01:05.7]} 22... Rf8 {[%clk 0:01:04.7]} 23. Nge4 {[%clk 0:00:37.8]}
23... Nxe4 {[%clk 0:00:55.2]} 24. Nxe4 {[%clk 0:00:38.7]} 24... Qe7 {[%clk
0:00:54.9]} 25. Ra1 {[%clk 0:00:15.2]} 25... Be6 {[%clk 0:00:52.2]} 26. Qc3
{[%clk 0:00:15.1]} 26... Nc4 {[%clk 0:00:49.8]} 27. h4 {[%clk 0:00:09.5]} 27...
h6 {[%clk 0:00:48.6]} 28. Nd2 {[%clk 0:00:08.6]} 28... Nxd2 {[%clk 0:00:41.1]}
29. Qxd2 {[%clk 0:00:09.5]} 29... b6 {[%clk 0:00:34.5]} 30. Qe3 {[%clk
0:00:09.2]} 30... Qd6 {[%clk 0:00:29.2]} 31. Rc1 {[%clk 0:00:08.9]} 31... Rc8
{[%clk 0:00:25.6]} 32. Rc6 {[%clk 0:00:06.1]} 32... Rxc6 {[%clk 0:00:22.7]} 33.
bxc6 {[%clk 0:00:07]} 33... Qc7 {[%clk 0:00:21.5]} 34. Qc3 {[%clk 0:00:06.3]}
34... Kf8 {[%clk 0:00:19.4]} 35. Bf3 {[%clk 0:00:04.7]} 35... Ke7 {[%clk
0:00:18.4]} 36. e3 {[%clk 0:00:04.9]} 36... f6 {[%clk 0:00:16.7]} 37. Be2 {[%clk
0:00:05.1]} 37... Qd6 {[%clk 0:00:13.8]} 38. c7 {[%clk 0:00:03]} 38... Bc8
{[%clk 0:00:09.8]} 39. Bf1 {[%clk 0:00:03.3]} 39... Qc5 {[%clk 0:00:08.5]} 40.
Qd2 {[%clk 0:00:02.9]} 40... Qxc7 {[%clk 0:00:08.6]} 41. Bb5 {[%clk 0:00:03.6]}
41... Qd6 {[%clk 0:00:08.3]} 42. Qc2 {[%clk 0:00:03.6]} 42... Be6 {[%clk
0:00:06.6]} 43. Kg2 {[%clk 0:00:03]} 43... Qc5 {[%clk 0:00:05.8]} 44. Qb2 {[%clk
0:00:03.5]} 44... Bd5+ {[%clk 0:00:05.8]} 45. Kg1 {[%clk 0:00:03.9]} 45... Qb4
{[%clk 0:00:05.5]} 46. Qc1 {[%clk 0:00:04.5]} 46... Kd6 {[%clk 0:00:04.6]} 47.
Kf1 {[%clk 0:00:03.3]} 47... Qc5 {[%clk 0:00:03.3]} 48. Qd2 {[%clk 0:00:03.7]}
48... Ke7 {[%clk 0:00:03.4]} 49. Ke1 {[%clk 0:00:03.5]} 49... Qb4 {[%clk
0:00:03.3]} 50. Qxb4+ {[%clk 0:00:03.8]} 50... axb4 {[%clk 0:00:04.2]} 51. Kd2
{[%clk 0:00:04.3]} 51... Kd6 {[%clk 0:00:04.9]} 52. Kc2 {[%clk 0:00:04.9]} 52...
Kc5 {[%clk 0:00:05.2]} 53. Kb2 {[%clk 0:00:04.9]} 53... Bc6 {[%clk 0:00:05.4]}
54. Bxc6 {[%clk 0:00:04.9]} 54... Kxc6 {[%clk 0:00:05.9]} 55. Kb3 {[%clk
0:00:05.7]} 55... Kc5 {[%clk 0:00:06]} 56. g4 {[%clk 0:00:05.8]} 56... g6 {[%clk
0:00:03.3]} 57. f3 {[%clk 0:00:05.6]} 57... h5 {[%clk 0:00:01.5]} 58. gxh5
{[%clk 0:00:05.4]} 58... gxh5 {[%clk 0:00:02.4]} 59. e4 {[%clk 0:00:05.5]} 59...
Kd4 {[%clk 0:00:02.3]} 60. Kxb4 {[%clk 0:00:06.1]} 60... Ke3 {[%clk 0:00:03]}
61. Kb5 {[%clk 0:00:06.8]} 61... Kxf3 {[%clk 0:00:03.8]} 62. Kxb6 {[%clk
0:00:07.4]} 62... Kxe4 {[%clk 0:00:02.7]} 63. a5 {[%clk 0:00:07.8]} 1-0

[Event "Late-Titled-Tuesday-Blitz-March-05-2024"]
[Site "Chess.com"]
[Date "2024.03.05"]
[Round "10"]
[White "LangesNasenhaar"]
[Black "Vse_po_kaify"]
[Result "1-0"]
[WhiteElo "2524"]
[BlackElo "2409"]
[TimeControl "180+1"]
[EndTime "15:52:35 PST"]
[Termination "LangesNasenhaar won on time"]

1. d4 {[%clk 0:03:00.9]} 1... Nf6 {[%clk 0:03:00.1]} 2. Nf3 {[%clk 0:03:01.5]}
2... g6 {[%clk 0:02:58.1]} 3. Bg5 {[%clk 0:03:01.3]} 3... Bg7 {[%clk 0:02:58.3]}
4. Nbd2 {[%clk 0:03:00.3]} 4... d5 {[%clk 0:02:57]} 5. e3 {[%clk 0:02:56.7]}
5... O-O {[%clk 0:02:57.4]} 6. c3 {[%clk 0:02:55.5]} 6... c5 {[%clk 0:02:57.7]}
7. Be2 {[%clk 0:02:53.9]} 7... Nc6 {[%clk 0:02:57.5]} 8. Qb3 {[%clk 0:02:52.4]}
8... c4 {[%clk 0:02:56.1]} 9. Qa3 {[%clk 0:02:52.4]} 9... Nd7 {[%clk 0:02:44.7]}
10. b3 {[%clk 0:02:47.2]} 10... cxb3 {[%clk 0:02:44.1]} 11. axb3 {[%clk
0:02:47]} 11... Re8 {[%clk 0:02:44.5]} 12. O-O {[%clk 0:02:42.3]} 12... Qc7
{[%clk 0:02:43.4]} 13. c4 {[%clk 0:02:38.8]} 13... dxc4 {[%clk 0:02:34.2]} 14.
bxc4 {[%clk 0:02:38.8]} 14... e5 {[%clk 0:02:33.5]} 15. d5 {[%clk 0:02:24.9]}
15... Bf8 {[%clk 0:02:32.8]} 16. Qb2 {[%clk 0:02:16.6]} 16... Nb4 {[%clk
0:02:32.2]} 17. e4 {[%clk 0:02:11.8]} 17... a5 {[%clk 0:02:28.1]} 18. Rfc1
{[%clk 0:02:07.4]} 18... Nc5 {[%clk 0:02:27.6]} 19. Qc3 {[%clk 0:01:57.9]} 19...
Bd7 {[%clk 0:02:25.3]} 20. Bf6 {[%clk 0:01:51.6]} 20... Bd6 {[%clk 0:02:23.8]}
21. Bf1 {[%clk 0:01:46.8]} 21... b6 {[%clk 0:01:59.4]} 22. Ne1 {[%clk
0:01:46.5]} 22... Nb7 {[%clk 0:01:45.7]} 23. Nd3 {[%clk 0:01:41]} 23... Nxd3
{[%clk 0:01:43.6]} 24. Qxd3 {[%clk 0:01:39.7]} 24... Bc5 {[%clk 0:01:42.3]} 25.
h4 {[%clk 0:01:35.5]} 25... Qd6 {[%clk 0:01:41.8]} 26. Bg5 {[%clk 0:01:34.7]}
26... f6 {[%clk 0:01:40.9]} 27. Bh6 {[%clk 0:01:32.9]} 27... Qe7 {[%clk
0:01:38.1]} 28. Qg3 {[%clk 0:01:29.8]} 28... a4 {[%clk 0:01:35.6]} 29. Rcb1
{[%clk 0:01:24.3]} 29... Nd6 {[%clk 0:01:33.9]} 30. Bd3 {[%clk 0:01:21.5]} 30...
Kh8 {[%clk 0:01:31.8]} 31. Be3 {[%clk 0:01:19.1]} 31... f5 {[%clk 0:01:12.3]}
32. Bxc5 {[%clk 0:01:05.6]} 32... bxc5 {[%clk 0:01:10.4]} 33. f3 {[%clk
0:01:06.1]} 33... f4 {[%clk 0:00:58.1]} 34. Qf2 {[%clk 0:01:06.5]} 34... Rec8
{[%clk 0:00:47.8]} 35. Rb6 {[%clk 0:00:59.3]} 35... Rc7 {[%clk 0:00:40.8]} 36.
Nb1 {[%clk 0:00:57.5]} 36... Nc8 {[%clk 0:00:35.6]} 37. Rb2 {[%clk 0:00:54.6]}
37... Rca7 {[%clk 0:00:32.4]} 38. Na3 {[%clk 0:00:54.4]} 38... Qd6 {[%clk
0:00:28.2]} 39. Rab1 {[%clk 0:00:54.3]} 39... Qc7 {[%clk 0:00:20.4]} 40. Qd2
{[%clk 0:00:45.5]} 40... Nd6 {[%clk 0:00:19.2]} 41. Qc3 {[%clk 0:00:45]} 41...
Nf7 {[%clk 0:00:15.9]} 42. Rb6 {[%clk 0:00:44.9]} 42... Kg7 {[%clk 0:00:13.6]}
43. Bc2 {[%clk 0:00:37.3]} 43... Qd8 {[%clk 0:00:12.8]} 44. h5 {[%clk
0:00:33.5]} 44... gxh5 {[%clk 0:00:11.2]} 45. Rb7 {[%clk 0:00:32.3]} 45... Rxb7
{[%clk 0:00:09]} 46. Rxb7 {[%clk 0:00:33.2]} 46... Qc8 {[%clk 0:00:09.2]} 47.
Rb6 {[%clk 0:00:32.1]} 47... h4 {[%clk 0:00:08.1]} 48. Kh2 {[%clk 0:00:30.7]}
48... Qd8 {[%clk 0:00:07.6]} 49. Rb7 {[%clk 0:00:29.6]} 49... Bc8 {[%clk
0:00:06.2]} 50. Rb5 {[%clk 0:00:28.7]} 50... Qg5 {[%clk 0:00:06]} 51. Qe1 {[%clk
0:00:21]} 51... Bd7 {[%clk 0:00:05.3]} 52. Rxc5 {[%clk 0:00:20.6]} 52... Rb8
{[%clk 0:00:05.6]} 53. Rc7 {[%clk 0:00:19.8]} 53... Be8 {[%clk 0:00:05.5]} 54.
Nb5 {[%clk 0:00:19.8]} 54... Bxb5 {[%clk 0:00:04.2]} 55. cxb5 {[%clk 0:00:20.7]}
55... Rxb5 {[%clk 0:00:04.6]} 56. d6 {[%clk 0:00:21.1]} 56... Qf6 {[%clk
0:00:01.8]} 57. Bxa4 {[%clk 0:00:18.9]} 57... Rb8 {[%clk 0:00:01.5]} 58. Qd2
{[%clk 0:00:16.4]} 58... Rf8 {[%clk 0:00:01.8]} 59. Bb3 {[%clk 0:00:16]} 59...
Qg5 {[%clk 0:00:02.3]} 60. Rxf7+ {[%clk 0:00:15.5]} 60... Rxf7 {[%clk
0:00:02.1]} 61. Bxf7 {[%clk 0:00:15.2]} 61... Qg3+ {[%clk 0:00:02.6]} 62. Kg1
{[%clk 0:00:15.2]} 62... h3 {[%clk 0:00:03.1]} 63. d7 {[%clk 0:00:15.4]} 63...
h2+ {[%clk 0:00:02.3]} 64. Kh1 {[%clk 0:00:15.4]} 64... Qg5 {[%clk 0:00:01.9]}
65. d8=Q {[%clk 0:00:13.8]} 65... Qh4 {[%clk 0:00:01.2]} 66. Qxh4 {[%clk
0:00:12.8]} 1-0

[Event "Late-Titled-Tuesday-Blitz-March-05-2024"]
[Site "Chess.com"]
[Date "2024.03.05"]
[Round "10"]
[White "Fh2411"]
[Black "Eliwood44"]
[Result "1-0"]
[WhiteElo "2645"]
[BlackElo "2523"]
[TimeControl "180+1"]
[EndTime "15:52:42 PST"]
[Termination "Fh2411 won by resignation"]

1. d4 {[%clk 0:03:00.9]} 1... Nf6 {[%clk 0:02:44.8]} 2. Nf3 {[%clk 0:03:00.5]}
2... e6 {[%clk 0:02:29.6]} 3. Bf4 {[%clk 0:02:59.9]} 3... d5 {[%clk 0:02:29.4]}
4. e3 {[%clk 0:03:00.2]} 4... Bd6 {[%clk 0:02:30.1]} 5. Bg3 {[%clk 0:03:00.2]}
5... O-O {[%clk 0:02:30.2]} 6. Nbd2 {[%clk 0:02:53.3]} 6... c5 {[%clk
0:02:25.6]} 7. c3 {[%clk 0:02:37.5]} 7... Qc7 {[%clk 0:02:25]} 8. Rc1 {[%clk
0:02:35.9]} 8... Nbd7 {[%clk 0:02:09.9]} 9. c4 {[%clk 0:02:33.8]} 9... Bxg3
{[%clk 0:01:56.5]} 10. hxg3 {[%clk 0:02:33.5]} 10... dxc4 {[%clk 0:01:55]} 11.
Bxc4 {[%clk 0:02:31]} 11... b6 {[%clk 0:01:55.2]} 12. Bd3 {[%clk 0:02:19.1]}
12... Bb7 {[%clk 0:01:40.9]} 13. b4 {[%clk 0:02:13.7]} 13... g6 {[%clk
0:01:20.1]} 14. Nb3 {[%clk 0:01:53.4]} 14... Rac8 {[%clk 0:01:05.3]} 15. O-O
{[%clk 0:01:20]} 15... Rfd8 {[%clk 0:00:59.8]} 16. bxc5 {[%clk 0:01:16.5]} 16...
bxc5 {[%clk 0:00:58.8]} 17. Nxc5 {[%clk 0:01:16.6]} 17... Nxc5 {[%clk
0:00:55.3]} 18. Rxc5 {[%clk 0:01:17.5]} 18... Qb8 {[%clk 0:00:42]} 19. Qc2
{[%clk 0:00:54.2]} 19... Rxc5 {[%clk 0:00:39.9]} 20. Qxc5 {[%clk 0:00:55.1]}
20... Qa8 {[%clk 0:00:39.6]} 21. Qe7 {[%clk 0:00:38.2]} 21... Kg7 {[%clk
0:00:34.8]} 22. Ne5 {[%clk 0:00:37.5]} 22... Rf8 {[%clk 0:00:34.2]} 23. Rc1
{[%clk 0:00:13.5]} 23... Bxg2 {[%clk 0:00:28.6]} 24. Rc7 {[%clk 0:00:14]} 24...
Nd5 {[%clk 0:00:28.2]} 25. Qd6 {[%clk 0:00:07.7]} 25... Nxc7 {[%clk 0:00:27.6]}
26. Qxc7 {[%clk 0:00:08.6]} 26... Bd5 {[%clk 0:00:26]} 27. Qe7 {[%clk
0:00:04.4]} 27... Qb7 {[%clk 0:00:21.3]} 28. Nd7 {[%clk 0:00:04.5]} 28... Rc8
{[%clk 0:00:15.9]} 29. Qf6+ {[%clk 0:00:04.9]} 29... Kg8 {[%clk 0:00:15.7]} 30.
Nc5 {[%clk 0:00:05.1]} 30... Qb2 {[%clk 0:00:13.6]} 31. e4 {[%clk 0:00:05.4]}
31... Bxa2 {[%clk 0:00:06.2]} 32. Nd7 {[%clk 0:00:03.7]} 32... Qc1+ {[%clk
0:00:03.7]} 33. Kg2 {[%clk 0:00:03.6]} 33... Qc6 {[%clk 0:00:04.1]} 34. Ne5
{[%clk 0:00:03.5]} 34... Qc7 {[%clk 0:00:03.6]} 35. Qf4 {[%clk 0:00:03.6]} 35...
f5 {[%clk 0:00:03]} 36. exf5 {[%clk 0:00:03.1]} 36... Bd5+ {[%clk 0:00:03.5]}
37. f3 {[%clk 0:00:03.4]} 37... exf5 {[%clk 0:00:03.4]} 38. Kh3 {[%clk
0:00:03.8]} 38... Qg7 {[%clk 0:00:03.3]} 39. Bb5 {[%clk 0:00:03.9]} 39... Rd8
{[%clk 0:00:03.6]} 40. Bd7 {[%clk 0:00:04.3]} 40... Rxd7 {[%clk 0:00:03.8]} 41.
Nxd7 {[%clk 0:00:04.7]} 41... Qxd7 {[%clk 0:00:04.7]} 42. Qb8+ {[%clk
0:00:05.4]} 42... Kg7 {[%clk 0:00:04.6]} 43. Qe5+ {[%clk 0:00:06]} 43... Kg8
{[%clk 0:00:05.1]} 44. Qb8+ {[%clk 0:00:06.1]} 44... Kf7 {[%clk 0:00:05.6]} 45.
Qh8 {[%clk 0:00:06.1]} 45... Ke6 {[%clk 0:00:05.3]} 46. Qe5+ {[%clk 0:00:06.2]}
46... Kf7 {[%clk 0:00:05.5]} 47. Qh8 {[%clk 0:00:06.9]} 47... Qe7 {[%clk
0:00:05.6]} 48. Qxh7+ {[%clk 0:00:07]} 48... Ke6 {[%clk 0:00:06.1]} 49. Qxg6+
{[%clk 0:00:07.4]} 49... Qf6 {[%clk 0:00:06.6]} 50. Qe8+ {[%clk 0:00:07.8]}
50... Kd6 {[%clk 0:00:07]} 51. Qb8+ {[%clk 0:00:07.4]} 51... Kc6 {[%clk
0:00:07.3]} 52. Qxa7 {[%clk 0:00:07.6]} 52... Qh6+ {[%clk 0:00:06.9]} 53. Kg2
{[%clk 0:00:08.3]} 53... Qd2+ {[%clk 0:00:06.3]} 54. Kh3 {[%clk 0:00:09]} 54...
Qh6+ {[%clk 0:00:04.5]} 55. Kg2 {[%clk 0:00:08.6]} 55... Qd2+ {[%clk 0:00:04.4]}
56. Kh3 {[%clk 0:00:09]} 56... Qd3 {[%clk 0:00:04.6]} 57. Qc5+ {[%clk
0:00:08.7]} 57... Kb7 {[%clk 0:00:05]} 58. Qxd5+ {[%clk 0:00:09.6]} 58... Kb6
{[%clk 0:00:05.5]} 59. Qd6+ {[%clk 0:00:09.4]} 59... Kb5 {[%clk 0:00:05.9]} 60.
Qc5+ {[%clk 0:00:10]} 60... Ka6 {[%clk 0:00:05.8]} 61. Qc6+ {[%clk 0:00:10.4]}
61... Ka5 {[%clk 0:00:05.9]} 62. Qd5+ {[%clk 0:00:10.9]} 62... Kb6 {[%clk
0:00:05.7]} 63. Kh4 {[%clk 0:00:11.4]} 63... f4 {[%clk 0:00:04.1]} 64. gxf4
{[%clk 0:00:10.6]} 64... Qh7+ {[%clk 0:00:04]} 65. Kg4 {[%clk 0:00:11.3]} 65...
Qg6+ {[%clk 0:00:04.4]} 66. Qg5 {[%clk 0:00:10.5]} 66... Qe6+ {[%clk 0:00:04.8]}
67. f5 {[%clk 0:00:11.1]} 67... Qe2 {[%clk 0:00:05]} 68. Qf6+ {[%clk 0:00:11.2]}
68... Kb5 {[%clk 0:00:05.1]} 69. Qe5+ {[%clk 0:00:11.5]} 69... Kc4 {[%clk
0:00:05.5]} 70. Qxe2+ {[%clk 0:00:11.3]} 70... Kxd4 {[%clk 0:00:06.4]} 71. f6
{[%clk 0:00:12]} 1-0

[Event "Late-Titled-Tuesday-Blitz-March-05-2024"]
[Site "Chess.com"]
[Date "2024.03.05"]
[Round "10"]
[White "Byniolus"]
[Black "Slovak_fighter2000"]
[Result "1-0"]
[WhiteElo "2784"]
[BlackElo "2642"]
[TimeControl "180+1"]
[EndTime "15:52:53 PST"]
[Termination "Byniolus won by resignation"]

1. e4 {[%clk 0:03:00.9]} 1... e6 {[%clk 0:02:59.3]} 2. d3 {[%clk 0:02:52.4]}
2... d5 {[%clk 0:02:59.3]} 3. c3 {[%clk 0:02:50.3]} 3... dxe4 {[%clk 0:02:57]}
4. dxe4 {[%clk 0:02:51.2]} 4... Qxd1+ {[%clk 0:02:57]} 5. Kxd1 {[%clk
0:02:51.7]} 5... Nc6 {[%clk 0:02:47]} 6. Be3 {[%clk 0:02:51.4]} 6... Nf6 {[%clk
0:02:45.2]} 7. f3 {[%clk 0:02:50.1]} 7... b6 {[%clk 0:02:39]} 8. Nd2 {[%clk
0:02:47.5]} 8... Bb7 {[%clk 0:02:37.8]} 9. Kc2 {[%clk 0:02:47.9]} 9... O-O-O
{[%clk 0:02:36.2]} 10. b4 {[%clk 0:02:47.7]} 10... a5 {[%clk 0:02:34.9]} 11. a3
{[%clk 0:02:46.8]} 11... Be7 {[%clk 0:02:27.4]} 12. Bb5 {[%clk 0:02:37.8]} 12...
Nd7 {[%clk 0:02:12.7]} 13. Ne2 {[%clk 0:02:32.8]} 13... Bd6 {[%clk 0:01:57.6]}
14. Nc4 {[%clk 0:02:29.4]} 14... Nde5 {[%clk 0:01:47.4]} 15. Nxd6+ {[%clk
0:02:28]} 15... Rxd6 {[%clk 0:01:44.8]} 16. Rhd1 {[%clk 0:02:24.4]} 16... Rhd8
{[%clk 0:01:44.2]} 17. Rxd6 {[%clk 0:02:22]} 17... Rxd6 {[%clk 0:01:45.1]} 18.
Bf4 {[%clk 0:02:20.2]} 18... Rd8 {[%clk 0:01:35.7]} 19. bxa5 {[%clk 0:02:12.4]}
19... bxa5 {[%clk 0:01:32.2]} 20. Rb1 {[%clk 0:02:00.9]} 20... f6 {[%clk
0:01:27.9]} 21. Be3 {[%clk 0:01:50.7]} 21... g5 {[%clk 0:01:16.7]} 22. Nd4
{[%clk 0:01:44.6]} 22... Nxd4+ {[%clk 0:01:07.9]} 23. cxd4 {[%clk 0:01:45.5]}
23... Nf7 {[%clk 0:01:07.3]} 24. Bc4 {[%clk 0:01:38.4]} 24... Re8 {[%clk
0:01:01.4]} 25. Kc3 {[%clk 0:01:31.5]} 25... Nd6 {[%clk 0:01:01.2]} 26. Bd3
{[%clk 0:01:26.4]} 26... h6 {[%clk 0:00:57]} 27. h4 {[%clk 0:01:13.6]} 27...
gxh4 {[%clk 0:00:53.4]} 28. Rh1 {[%clk 0:01:13.2]} 28... Rg8 {[%clk 0:00:50.3]}
29. Bf1 {[%clk 0:01:11.5]} 29... Bxe4 {[%clk 0:00:36]} 30. fxe4 {[%clk
0:01:09.1]} 30... Nxe4+ {[%clk 0:00:36.9]} 31. Kb3 {[%clk 0:00:53.9]} 31... Ng3
{[%clk 0:00:36.3]} 32. Bc4 {[%clk 0:00:54]} 32... Kd7 {[%clk 0:00:30.6]} 33.
Rxh4 {[%clk 0:00:34.6]} 33... Nf5 {[%clk 0:00:30.6]} 34. Re4 {[%clk 0:00:27.1]}
34... Re8 {[%clk 0:00:17.8]} 35. g4 {[%clk 0:00:19]} 35... Nd6 {[%clk
0:00:17.4]} 36. Rf4 {[%clk 0:00:19.6]} 36... f5 {[%clk 0:00:15]} 37. gxf5 {[%clk
0:00:14.1]} 37... Nxf5 {[%clk 0:00:15.9]} 38. Bd2 {[%clk 0:00:12.3]} 38... Rb8+
{[%clk 0:00:12.5]} 39. Kc2 {[%clk 0:00:12.8]} 39... a4 {[%clk 0:00:11.6]} 40.
Bd3 {[%clk 0:00:09.9]} 40... Nd6 {[%clk 0:00:08.8]} 41. Bb4 {[%clk 0:00:09.8]}
41... Kc6 {[%clk 0:00:08.4]} 42. Rf6 {[%clk 0:00:08.5]} 42... Kd5 {[%clk
0:00:08.9]} 43. Rxh6 {[%clk 0:00:08.4]} 43... Kxd4 {[%clk 0:00:07.5]} 44. Rxe6
{[%clk 0:00:07.5]} 44... Kd5 {[%clk 0:00:07.5]} 45. Rh6 {[%clk 0:00:06.9]} 45...
Re8 {[%clk 0:00:05.9]} 46. Rh5+ {[%clk 0:00:07]} 46... Kc6 {[%clk 0:00:05.9]}
47. Bxd6 {[%clk 0:00:06.2]} 47... Kxd6 {[%clk 0:00:06.4]} 48. Bb5 {[%clk
0:00:06]} 48... c6 {[%clk 0:00:05.5]} 49. Bxa4 {[%clk 0:00:04.9]} 49... Re3
{[%clk 0:00:04.6]} 50. Kb2 {[%clk 0:00:04.2]} 50... Re2+ {[%clk 0:00:04.8]} 51.
Bc2 {[%clk 0:00:04.5]} 51... c5 {[%clk 0:00:05.2]} 52. Rh6+ {[%clk 0:00:03.8]}
52... Kd5 {[%clk 0:00:05.5]} 53. Rh4 {[%clk 0:00:04.7]} 53... c4 {[%clk
0:00:05.2]} 54. Kc3 {[%clk 0:00:04.7]} 54... Re3+ {[%clk 0:00:05.4]} 55. Kb4
{[%clk 0:00:05.3]} 55... c3 {[%clk 0:00:04.8]} 56. Rc4 {[%clk 0:00:04.3]} 56...
Re8 {[%clk 0:00:03.3]} 57. Rxc3 {[%clk 0:00:02.4]} 57... Rb8+ {[%clk 0:00:04]}
58. Ka4 {[%clk 0:00:02.7]} 58... Kd4 {[%clk 0:00:04.1]} 59. Rc6 {[%clk
0:00:02.5]} 59... Kd5 {[%clk 0:00:04.3]} 60. Rc7 {[%clk 0:00:01.9]} 60... Kd6
{[%clk 0:00:04.7]} 61. Rc3 {[%clk 0:00:02.1]} 61... Kd5 {[%clk 0:00:05]} 62.
Bb3+ {[%clk 0:00:01.8]} 62... Kd4 {[%clk 0:00:05.3]} 63. Rc4+ {[%clk 0:00:02.4]}
63... Kd3 {[%clk 0:00:05]} 64. Rc5 {[%clk 0:00:02.9]} 64... Kd4 {[%clk
0:00:05.2]} 65. Rb5 {[%clk 0:00:02.9]} 65... Ra8+ {[%clk 0:00:05.1]} 66. Kb4
{[%clk 0:00:03.6]} 66... Rh8 {[%clk 0:00:03.9]} 67. a4 {[%clk 0:00:03.3]} 67...
Rh4 {[%clk 0:00:04]} 68. a5 {[%clk 0:00:03.8]} 68... Kd3+ {[%clk 0:00:04.4]} 69.
Ka3 {[%clk 0:00:04]} 69... Kc3 {[%clk 0:00:04.8]} 70. Rc5+ {[%clk 0:00:03.9]}
70... Kd4 {[%clk 0:00:05.3]} 71. Rc4+ {[%clk 0:00:03.9]} 1-0